{"text_format":"1","workbook":"xlsx","n_sheets":7,"sheets":["Fitxa","Full2","Taula OE","Hoja2","Sistemes de gestió","Descripció aplicacions","Full1"],"not_rendered":{"charts":0,"images":3,"macros":1,"external_links":1,"defined_names":3,"comments":0,"pivot_tables":0},"unopened":[],"bounds":{"document_bytes":16777216,"sheet_cells":100000,"rows_first":2000,"rows_last":500,"rows_between":2000,"halvings":0,"cell_chars":16384,"cell_head_chars":4096},"cells_cut":0,"cells_raw":0,"read":"whole","date_system":"1900"}

{"sheet":"Fitxa","index":0,"n_rows":106,"n_cols":9,"rows_kept":106,"cut":false,"hidden":false,"merged":[[101,0,103,6],[90,0,91,6],[95,0,96,6],[17,8,20,13],[23,8,25,13],[35,8,38,13],[66,2,68,6],[66,0,68,1],[3,8,3,13],[8,8,8,13],[11,8,11,13],[12,0,12,6],[53,3,53,6],[3,0,3,6],[49,3,49,6],[51,3,51,6],[106,0,110,6],[0,0,0,6],[88,3,88,6],[25,3,25,6],[8,0,8,6],[23,0,23,6],[20,2,20,6],[5,0,5,6],[27,3,27,6],[70,1,70,6],[74,1,74,6],[39,5,39,6],[11,0,11,6],[47,3,47,6],[41,4,41,6],[43,4,43,6]]}
["FITXA D'ACTUACIONS FSE+ 2021-2027"]
["IDENTIFICACIÓ"]
["Nom de l'operació:"]
[null,null,null,null,null,null,null,null,"A continuació, s'exposen una sèrie de recomanacions per tal de facilitar-vos l'emplenament dels camps des d'un punt de vista d'avaluació ex ante:"]
[]
["DESCRIPCIÓ DE L'ACTUACIÓ"]
[]
["Breu descripció de la necessitat/repte:"]
[null,null,null,null,null,null,null,null,"Descripció de la necessitat: Es tracta d'identificar la raó per la qual es fa aquesta operació. S'ha de fer una descripció el més detallada possible de la necessitat o problemàtica que motiva l'actuació, les seves causes,  la seva magnitud i, de ser possible, una referència per ponderar aquesta magnitud (per exemple: el seu valor en els darrers anys, o en altres CCAA)"]
[]
[{"$f":"IFERROR(VLOOKUP(TRUE,Hoja2!$A$1:$C$13,3,FALSE),\"OBJECTIU ESPECÍFIC (Marqueu en la pestanya 'Taula OE' en el que s'emmarca l'actuació proposada)\")","v":"OBJECTIU ESPECÍFIC (Marqueu en la pestanya 'Taula OE' en el que s'emmarca l'actuació proposada)"}]
[null,null,null,null,null,null,null,null,"Objectiu específic: S'ha de proposar l'objectiu de l'actuació de forma detallada, clara, senzilla i mesurable. Aquest objectiu s'ha de vincular amb un dels objectius del POCAT que es troben a la pestanya \"Taula OE\""]
[{"$f":"IF(Hoja2!E42>1,\"Cal escollir un únic objectiu específic al full 'Taula OE'\",IFERROR(VLOOKUP(TRUE,Hoja2!$A$1:$B$41,2,FALSE),\"\"))","v":""}]
[]
["MESURA"]
[]
[]
["Destinataris prioritaris:",null,"Persones desocupades",null,"Persones inactives",null,null,null,"Destinataris prioritaris: S'ha d'indicar quins són els principals col·lectius als que es dirigeix el programa. Es pot marcar més d'un. A \"Altre públic objectiu\" s'han d'indicar altres col·lectius que es veuran beneficiats"]
[null,null,"Persones ocupades",null,"Col·lectius desfavorits"]
[]
["Altre públic objectiu:"]
[]
["Breu descripció de l'actuació:"]
[null,null,null,null,null,null,null,null,"Descripció de l'actuació: Es tracta d'explicar quines accions es duràn a terme en el marc de l'actuació, qui serà el proveïdor de l'actuació (administracions públiques, empreses, entitats, etc.), quina relació es tindrà amb el proveïdor (a través de quin instrument, amb quin sistema d’incentius, amb quin mecanisme de coordinació, etc.), la fonamentació per la qual es considera que l'actuació provocarà el canvi desitjat sobre el problema que li ha donat raó de ser"]
[]
["Mitjans disponibles per a l'execució:"]
[]
["Base legal per la intervenció:"]
[]
["Entitat que executarà l'actuació/operació:"]
["Entitat de dret públic",null,"Entitat de dret privat",null,"Persones jurídiques"]
[]
["MÈTODE DE GESTIÓ"]
[null,null,null,"És ajut d'estat"]
[]
["ACREDITACIÓ DE L'EXECUCIÓ DE L'ACTUACIÓ",null,null,null,null,null,null,null,"Acreditació de l'execució: S'ha d'exposar quins són els mecanismes mitjaçant els quals es comprovarà que l'actuació proposada s'ha executat"]
[]
["Visites presencials",null,null,{"$f":"IF(Hoja2!B56=TRUE,\"Número aproximat:\",\"\")","v":""}]
[]
["Registres d'usuaris atesos",null,null,{"$f":"IF(Hoja2!B57=TRUE,\"Tipus de dades recollides:\",\"\")","v":""}]
[]
["Proves documentals dels usuaris atesos:",null,null,{"$f":"IF(Hoja2!B58=TRUE,\"Quines:\",\"\")","v":""}]
[]
["Proves documentals del servei prestat:",null,null,{"$f":"IF(Hoja2!B59=TRUE,\"Quines:\",\"\")","v":""}]
[]
["APLICACIONS DE GESTIÓ"]
[]
["Concessió de l'ajut",null,{"$f":"IF(Hoja2!B61=TRUE,\"Nom de l'app:\",\"\")","v":""}]
[]
["Seguiment de l'execució",null,{"$f":"IF(Hoja2!B62=TRUE,\"Nom de l'app:\",\"\")","v":""}]
[]
["Justificació econòmica",null,{"$f":"IF(Hoja2!B63=TRUE,\"Nom de l'app:\",\"\")","v":""}]
[]
["Pagament",null,{"$f":"IF(Hoja2!B64=TRUE,\"Nom de l'app:\",\"\")","v":""}]
[]
["PLA DE FINANÇAMENT"]
[]
[null,"Fons propis","Conferència Sectorial","FSE","Altres fons UE \n(no FSE)","Finançament privat","Import total"]
["Exercici n",null,null,null,null,null,{"$f":"SUM(B59:F59)","v":0}]
["Exercici n+1",null,null,null,null,null,{"$f":"SUM(B60:F60)","v":0}]
[]
["Tipus de despesa"]
[]
["Despesa directa",null,"Despeses de personal",null,"Materials","Arrendaments"]
[null,null,"Assegurances",null,"Serveis","Altres"]
[]
["Descripció mitjans i espais:"]
[]
[]
[]
["Altres:"]
[]
["Despesa indirecta",null,"Sí","No"]
[]
["Descriure:"]
[]
["SIMPLIFICACIÓ DE COSTOS"]
[]
["Tipus de sistemes de simplificació de costos que es poden utilitzar en la justificació de la despesa:"]
[]
[null,"Aplicació d'un tipus fix",null,null,{"$f":"IF(Hoja2!H1=TRUE,\"Indiqueu %:\",\"\")","v":""}]
[null,"Costos unitaris / mòdul"]
[null,"Imports a tant alçat"]
[]
["INFORMACIÓ INDICADORS"]
[]
["Nombre de persones participants previstes:",null,null,null,"% dones"]
[]
["Mètode utilitzat per la quantificació:"]
[]
["En l'operació es pot obtenir l'indicador \"Nombre d'administracions públiques o serveis públics objecte de suport a nivell nacional, regional o local\""]
[]
[]
["Indiqueu número aproximat:"]
[]
["En l'operació es pot obtenir l'indicador \"Nombre de microempreses i petites i mitjanes empreses objecte de suport (incloses cooperatives i empreses socials)\""]
[]
[]
["Indiqueu número aproximat:"]
[]
["Altres indicadors que es considerin rellevants per mesurar els resultats de l'operació"]
[]
[]
[]
[]
["OBSERVACIONS"]

{"sheet":"Full2","index":1,"n_rows":16,"n_cols":14,"rows_kept":16,"cut":false,"hidden":true,"merged":[]}
["i) Millorar l'accés a l'ocupació i a les mesures d'activació de tots els demandants d'ocupació, i en particular dels joves, espacialment a través de l'aplicació de la Garantia Juvenil, i els aturats de llarga durada, així com dels grups desfavorits en el mercat laboral, i de les persones inactives, promovent l'ocupació per compte propi i l'economia social","ii) Modernitzar les institucions i els serveis del mercat de treball per avaluar i preveure les necessitats de capacitats i garantir una assistència oportuna i personalitzada i el suport a l'adequació entre l'oferta i la demanda en el mercat de treball, les transicions i la mobilitat","iii) Promoure una participació equilibrada pel que fa a gènere en el mercat de treball, condicions de treball equitatives i una millora de l'equilibri entre la vida laboral i la familiar, fins i tot a través de l'accés a serveis de cura infantil assequibles i serveis de cures per a persones dependents","iii bis) Promoure l'adaptació dels treballadors, les empreses i els empresaris al canvi, l'envelliment actiu i saludable i a un entorn laboral saludable i ben adaptat que abordi els riscos per a la salut","iv) Millorar la qualitat, el caràcter inclusiu, l'eficàcia i la pertinència dels sistemes d'educació i de formació per al mercat de treball, fins i tot a través del reconeixement de l'aprenentatge formal i informal, amb vista a donar suport a l'adquisició de competències clau, incloses les capacitats digitals i d'emprenedoria, i a través del foment de la introducció dels sistemes formació dual i d'aprenentatge","v) Promoure la igualtat d'accés a una educació i una formació de qualitat i inclusives i la seva culminació, en particular per als grups desfavorits, des de l'educació i l'atenció a la primera infància fins a l'educació i la formació generals i professionals, incloent l'educació superior, l'educació i l'aprenentatge dels adults i la facilitació de la mobilitat de l'aprenentatge per a tothom, i de l'accessibilitat per a les persones amb discapacitat","vi) Promoure l'aprenentatge permanent, especialment mitjançant oportunitats de millora i reciclatge flexibles de les capacitats per a tots tenint en compte les capacitats digitals i d'emprenedoria, una millor previsió dels canvis i nous requisits de capacitats, tenint en compte les necessitats del mercat de treball, facilitant les transicions professionals i promovent la mobilitat professional","vii) Fomentar la inclusió activa a l'objecte de promoure la igualtat d'oportunitats i la participació no discriminatòria i activa, i millorar l'ocupabilitat, en particular per als grups desfavorits","viii) Promoure la integració socioeconòmica dels nacionals de tercers països, incloses les persones migrants","viiia) Promoure la integració socioeconòmica de comunidades marginades, com la romaní","ix) Millorar la igualtat i l'oportunitat de l'accés a uns serveis de qualitat, sostenibles i assequibles, incloent serveis que promoguin l'accés a un habitatge i a cures centrades en la persona, inclosa l'assistència sanitària; modernitzar els sistemes de protecció social, i especialment promoure l'accés a la protecció social, amb especial focus en els nens i els grups desfavorits; millorar l'accessibilitat particularment de les persones amb discapacitat, l'efectivitat i la resiliència dels sistemes d'assistència sanitària i les cures de llarga durada","x) Promoure la integració social de les persones en risc de pobresa o exclusió social, incloses les persones més desfavorides i els nens","xi) Corregir la privació material mitjançant aliments o la prestació d'assistència material bàsica a les persones més desfavorides, inclosos els nens i facilitar mesures d'acompanyament per recolzar la seva inclusió social",1]
["Aliances amb les empreses per al desenvolupament de capacitats","Modernització de les institucions del mercat laboral","Suport a l'autoocupació i creació d'empreses: formació, orientació, informació","Formació per a l'ocupació - empleats","Orientació professional","Programes d'orientació i suport als alumnes i les famílies en la lluita contra abandonament escolar","Acreditació de competències professionals o bàsiques","Ocupació protegida: inserció sociolaboral de persones en risc d'exclusió centres d'inserció sociolaboral","Itineraris d'inserció sociolaboral (migrants)","Itineraris d'inserció sociolaboral per a gitanos","Accés a serveis de salut com a mesura d'inclusió","Mesures d'integració social i inclusió per a migrants","Assistència material bàsica",{"$f":"IF(Hoja2!$E$1=1,Full2!A2,IF(Hoja2!$E$2=1,Full2!B2,IF(Hoja2!$E$3=1,Full2!C2,IF(Hoja2!$E$4=1,Full2!D2,IF(Hoja2!$E$5=1,Full2!E2,IF(Hoja2!$E$6=1,Full2!F2,IF(Hoja2!$E$7=1,Full2!G2,IF(Hoja2!$E$8=1,Full2!H2,IF(Hoja2!$E$9=1,Full2!I2,IF(Hoja2!$E$10=1,Full2!J2,IF(Hoja2!$E$11=1,Full2!K2,IF(Hoja2!$E$12=1,Full2!K2,IF(Hoja2!$E$13=1,Full2!L2,\"Seleccionar un Objectiu Específic al full 'Taula OE'\")))))))))))))","v":"Seleccionar un Objectiu Específic al full 'Taula OE'"}]
["Suport a l'autoocupació i la creació d'empreses: formació, orientació, informació"," ","Ajudes a la creació d'empreses i a l'autoocupació","Incentius per a la transició de treballadors (canvis d'empresa / sectors)"," ","Programes de reforç per evitar l'abandonament escolar primerenc","Formació al llarg de la vida","Ocupació protegida: persones amb discapacitat","Mesures d'inclusió educativa per a migrants","Mesures d'inclusió educativa per a gitanos","Accés a serveis de salut, en particular mental, dental i nutricional per a nens en situació de vulnerabilitat","Mesures d'integració social per a joves vulnerables","Ajuda alimentària",{"$f":"IF(Hoja2!$E$1=1,Full2!A3,IF(Hoja2!$E$2=1,Full2!B3,IF(Hoja2!$E$3=1,Full2!C3,IF(Hoja2!$E$4=1,Full2!D3,IF(Hoja2!$E$5=1,Full2!E3,IF(Hoja2!$E$6=1,Full2!F3,IF(Hoja2!$E$7=1,Full2!G3,IF(Hoja2!$E$8=1,Full2!H3,IF(Hoja2!$E$9=1,Full2!I3,IF(Hoja2!$E$10=1,Full2!J3,IF(Hoja2!$E$11=1,Full2!K3,IF(Hoja2!$E$12=1,Full2!K3,IF(Hoja2!$E$13=1,Full2!L3,\"\")))))))))))))","v":""}]
["Ajudes a la creació d'empreses i a l'autoocupació"," ","Mesures de conciliació de la vida laboral i familiar","Mesures per al manteniment de l'ocupació durant crisi (ERTES)"," ","Reforç educatiu per a nens amb necessitats especials"," ","Incentius a la contractació de grups vulnerables","Mesures per combatre els prejudicis, la discriminació i la segregació de migrants","Mesures per combatre els prejudicis, la discriminació i la segregació dels gitanos","Accés a serveis socials i inclusion per a famílies i infants en situació de vulnerabilitat","Mesures d'integració social per a persones amb discapacitat o malaltia mental","Mesures d'acompanyament - ajuda alimentària",{"$f":"IF(Hoja2!$E$1=1,Full2!A4,IF(Hoja2!$E$2=1,Full2!B4,IF(Hoja2!$E$3=1,Full2!C4,IF(Hoja2!$E$4=1,Full2!D4,IF(Hoja2!$E$5=1,Full2!E4,IF(Hoja2!$E$6=1,Full2!F4,IF(Hoja2!$E$7=1,Full2!G4,IF(Hoja2!$E$8=1,Full2!H4,IF(Hoja2!$E$9=1,Full2!I4,IF(Hoja2!$E$10=1,Full2!J4,IF(Hoja2!$E$11=1,Full2!K4,IF(Hoja2!$E$12=1,Full2!K4,IF(Hoja2!$E$13=1,Full2!L4,\"\")))))))))))))","v":""}]
["Creació directa d'ocupació pública (ens locals / ONG)"," ","Promoció de la igualtat en les condicions de treball per a homes i dones","Promoció de la mobilitat"," ","Reinserció en el sistema educatiu - programes de segona oportunitat"," ","Itineraris d'inserció sociolaboral"," "," ","Suport a la transició a un sistema de cures centrat en la persona i en la vida independent","Mesures d'integració social per a persones sense llar o amb dificultats d'accés a l'habitatge"," ",{"$f":"IF(Hoja2!$E$1=1,Full2!A5,IF(Hoja2!$E$2=1,Full2!B5,IF(Hoja2!$E$3=1,Full2!C5,IF(Hoja2!$E$4=1,Full2!D5,IF(Hoja2!$E$5=1,Full2!E5,IF(Hoja2!$E$6=1,Full2!F5,IF(Hoja2!$E$7=1,Full2!G5,IF(Hoja2!$E$8=1,Full2!H5,IF(Hoja2!$E$9=1,Full2!I5,IF(Hoja2!$E$10=1,Full2!J5,IF(Hoja2!$E$11=1,Full2!K5,IF(Hoja2!$E$12=1,Full2!K5,IF(Hoja2!$E$13=1,Full2!L5,\"\")))))))))))))","v":""}]
["Economia social - Suport a la creació d'empreses d'economia social: formació, orientació, informació"," ","Promoció de la participació de les dones en el mercat laboral","Promoció de noves formes d'organització empresarial"," "," "," ","Itineraris d'inserció sociolaboral (antidiscriminació)"," "," ","Mesures de millora i modernització de sistema protecció social, incloent serveis socials"," "," ",{"$f":"IF(Hoja2!$E$1=1,Full2!A6,IF(Hoja2!$E$2=1,Full2!B6,IF(Hoja2!$E$3=1,Full2!C6,IF(Hoja2!$E$4=1,Full2!D6,IF(Hoja2!$E$5=1,Full2!E6,IF(Hoja2!$E$6=1,Full2!F6,IF(Hoja2!$E$7=1,Full2!G6,IF(Hoja2!$E$8=1,Full2!H6,IF(Hoja2!$E$9=1,Full2!I6,IF(Hoja2!$E$10=1,Full2!J6,IF(Hoja2!$E$11=1,Full2!K6,IF(Hoja2!$E$12=1,Full2!K6,IF(Hoja2!$E$13=1,Full2!L6,\"\")))))))))))))","v":""}]
["Economia social - Ajuts a la creació d'empreses d'economia social"," "," "," "," "," "," ","Itineraris d'inserció sociolaboral (dones en risc d'exclusió)"," "," ","Mesures per a l'accessibilitat i l'eliminació de barreres a la discapacitat"," "," ",{"$f":"IF(Hoja2!$E$1=1,Full2!A7,IF(Hoja2!$E$2=1,Full2!B7,IF(Hoja2!$E$3=1,Full2!C7,IF(Hoja2!$E$4=1,Full2!D7,IF(Hoja2!$E$5=1,Full2!E7,IF(Hoja2!$E$6=1,Full2!F7,IF(Hoja2!$E$7=1,Full2!G7,IF(Hoja2!$E$8=1,Full2!H7,IF(Hoja2!$E$9=1,Full2!I7,IF(Hoja2!$E$10=1,Full2!J7,IF(Hoja2!$E$11=1,Full2!K7,IF(Hoja2!$E$12=1,Full2!K7,IF(Hoja2!$E$13=1,Full2!L7,\"\")))))))))))))","v":""}]
["Economia social - Incentius a l'ocupació estable"," "," "," "," "," "," ","Itineraris d'inserció sociolaboral (persones amb discapacitat o malaltia mental)"," "," ","Programes d'accés a l'habitatge o renovació per a famílies en situació de vulnerabilitat"," "," ",{"$f":"IF(Hoja2!$E$1=1,Full2!A8,IF(Hoja2!$E$2=1,Full2!B8,IF(Hoja2!$E$3=1,Full2!C8,IF(Hoja2!$E$4=1,Full2!D8,IF(Hoja2!$E$5=1,Full2!E8,IF(Hoja2!$E$6=1,Full2!F8,IF(Hoja2!$E$7=1,Full2!G8,IF(Hoja2!$E$8=1,Full2!H8,IF(Hoja2!$E$9=1,Full2!I8,IF(Hoja2!$E$10=1,Full2!J8,IF(Hoja2!$E$11=1,Full2!K8,IF(Hoja2!$E$12=1,Full2!K8,IF(Hoja2!$E$13=1,Full2!L8,\"\")))))))))))))","v":""}]
["Formació en alternança amb l'ocupació"," "," "," "," "," "," "," "," "," "," "," "," ",{"$f":"IF(Hoja2!$E$1=1,Full2!A9,IF(Hoja2!$E$2=1,Full2!B9,IF(Hoja2!$E$3=1,Full2!C9,IF(Hoja2!$E$4=1,Full2!D9,IF(Hoja2!$E$5=1,Full2!E9,IF(Hoja2!$E$6=1,Full2!F9,IF(Hoja2!$E$7=1,Full2!G9,IF(Hoja2!$E$8=1,Full2!H9,IF(Hoja2!$E$9=1,Full2!I9,IF(Hoja2!$E$10=1,Full2!J9,IF(Hoja2!$E$11=1,Full2!K9,IF(Hoja2!$E$12=1,Full2!K9,IF(Hoja2!$E$13=1,Full2!L9,\"\")))))))))))))","v":""}]
["Formació per a l'ocupació - desocupats"," "," "," "," "," "," "," "," "," "," "," "," ",{"$f":"IF(Hoja2!$E$1=1,Full2!A10,IF(Hoja2!$E$2=1,Full2!B10,IF(Hoja2!$E$3=1,Full2!C10,IF(Hoja2!$E$4=1,Full2!D10,IF(Hoja2!$E$5=1,Full2!E10,IF(Hoja2!$E$6=1,Full2!F10,IF(Hoja2!$E$7=1,Full2!G10,IF(Hoja2!$E$8=1,Full2!H10,IF(Hoja2!$E$9=1,Full2!I10,IF(Hoja2!$E$10=1,Full2!J10,IF(Hoja2!$E$11=1,Full2!K10,IF(Hoja2!$E$12=1,Full2!K10,IF(Hoja2!$E$13=1,Full2!L10,\"\")))))))))))))","v":""}]
["Incentius a la contractació estable d'investigadors (doctors i tecnòlegs)"," "," "," "," "," "," "," "," "," "," "," "," ",{"$f":"IF(Hoja2!$E$1=1,Full2!A11,IF(Hoja2!$E$2=1,Full2!B11,IF(Hoja2!$E$3=1,Full2!C11,IF(Hoja2!$E$4=1,Full2!D11,IF(Hoja2!$E$5=1,Full2!E11,IF(Hoja2!$E$6=1,Full2!F11,IF(Hoja2!$E$7=1,Full2!G11,IF(Hoja2!$E$8=1,Full2!H11,IF(Hoja2!$E$9=1,Full2!I11,IF(Hoja2!$E$10=1,Full2!J11,IF(Hoja2!$E$11=1,Full2!K11,IF(Hoja2!$E$12=1,Full2!K11,IF(Hoja2!$E$13=1,Full2!L11,\"\")))))))))))))","v":""}]
["Incentius a la contractació indefinida"," "," "," "," "," "," "," "," "," "," "," "," ",{"$f":"IF(Hoja2!$E$1=1,Full2!A12,IF(Hoja2!$E$2=1,Full2!B12,IF(Hoja2!$E$3=1,Full2!C12,IF(Hoja2!$E$4=1,Full2!D12,IF(Hoja2!$E$5=1,Full2!E12,IF(Hoja2!$E$6=1,Full2!F12,IF(Hoja2!$E$7=1,Full2!G12,IF(Hoja2!$E$8=1,Full2!H12,IF(Hoja2!$E$9=1,Full2!I12,IF(Hoja2!$E$10=1,Full2!J12,IF(Hoja2!$E$11=1,Full2!K12,IF(Hoja2!$E$12=1,Full2!K12,IF(Hoja2!$E$13=1,Full2!L12,\"\")))))))))))))","v":""}]
["Incentius a la contractació indefinida de persones amb discapacitat"," "," "," "," "," "," "," "," "," "," "," "," ",{"$f":"IF(Hoja2!$E$1=1,Full2!A13,IF(Hoja2!$E$2=1,Full2!B13,IF(Hoja2!$E$3=1,Full2!C13,IF(Hoja2!$E$4=1,Full2!D13,IF(Hoja2!$E$5=1,Full2!E13,IF(Hoja2!$E$6=1,Full2!F13,IF(Hoja2!$E$7=1,Full2!G13,IF(Hoja2!$E$8=1,Full2!H13,IF(Hoja2!$E$9=1,Full2!I13,IF(Hoja2!$E$10=1,Full2!J13,IF(Hoja2!$E$11=1,Full2!K13,IF(Hoja2!$E$12=1,Full2!K13,IF(Hoja2!$E$13=1,Full2!L13,\"\")))))))))))))","v":""}]
["Mesures d'activació i abast"," "," "," "," "," "," "," "," "," "," "," "," ",{"$f":"IF(Hoja2!$E$1=1,Full2!A14,IF(Hoja2!$E$2=1,Full2!B14,IF(Hoja2!$E$3=1,Full2!C14,IF(Hoja2!$E$4=1,Full2!D14,IF(Hoja2!$E$5=1,Full2!E14,IF(Hoja2!$E$6=1,Full2!F14,IF(Hoja2!$E$7=1,Full2!G14,IF(Hoja2!$E$8=1,Full2!H14,IF(Hoja2!$E$9=1,Full2!I14,IF(Hoja2!$E$10=1,Full2!J14,IF(Hoja2!$E$11=1,Full2!K14,IF(Hoja2!$E$12=1,Full2!K14,IF(Hoja2!$E$13=1,Full2!L14,\"\")))))))))))))","v":""}]
["Orientació professional"," "," "," "," "," "," "," "," "," "," "," "," ",{"$f":"IF(Hoja2!$E$1=1,Full2!A15,IF(Hoja2!$E$2=1,Full2!B15,IF(Hoja2!$E$3=1,Full2!C15,IF(Hoja2!$E$4=1,Full2!D15,IF(Hoja2!$E$5=1,Full2!E15,IF(Hoja2!$E$6=1,Full2!F15,IF(Hoja2!$E$7=1,Full2!G15,IF(Hoja2!$E$8=1,Full2!H15,IF(Hoja2!$E$9=1,Full2!I15,IF(Hoja2!$E$10=1,Full2!J15,IF(Hoja2!$E$11=1,Full2!K15,IF(Hoja2!$E$12=1,Full2!K15,IF(Hoja2!$E$13=1,Full2!L15,\"\")))))))))))))","v":""}]
[null,null,null,null,null,null,null,null,null," "," "]

{"sheet":"Taula OE","index":2,"n_rows":38,"n_cols":2,"rows_kept":38,"cut":false,"hidden":false,"merged":[[34,0,36,0],[34,1,36,10],[37,0,39,0],[37,1,39,10],[22,0,24,0],[22,1,24,10],[25,0,27,0],[25,1,27,10],[31,0,33,0],[31,1,33,10],[0,0,0,10],[1,0,3,0],[1,1,3,10],[4,0,6,0],[4,1,6,10],[10,0,12,0],[10,1,12,10],[28,0,30,0],[28,1,30,10],[7,0,9,0],[7,1,9,10],[13,0,15,0],[13,1,15,10],[16,0,18,0],[16,1,18,10],[19,0,21,0],[19,1,21,10]]}
["OBJECTIUS ESPECÍFICS"]
[null,"i) Millorar l'accés a l'ocupació i a les mesures d'activació de tots els demandants d'ocupació, i en particular dels joves, espacialment a través de l'aplicació de la Garantia Juvenil, i els aturats de llarga durada, així com dels grups desfavorits en el mercat laboral, i de les persones inactives, promovent l'ocupació per compte propi i l'economia social"]
[]
[]
[null,"ii) Modernitzar les institucions i els serveis del mercat de treball per avaluar i preveure les necessitats de capacitats i garantir una assistència oportuna i personalitzada i el suport a l'adequació entre l'oferta i la demanda en el mercat de treball, les transicions i la mobilitat"]
[]
[]
[null,"iii) Promoure una participació equilibrada pel que fa a gènere en el mercat de treball, condicions de treball equitatives i una millora de l'equilibri entre la vida laboral i la familiar, fins i tot a través de l'accés a serveis de cura infantil assequibles i serveis de cures per a persones dependents"]
[]
[]
[null,"iii bis) Promoure l'adaptació dels treballadors, les empreses i els empresaris al canvi, l'envelliment actiu i saludable i a un entorn laboral saludable i ben adaptat que abordi els riscos per a la salut"]
[]
[]
[null,"iv) Millorar la qualitat, el caràcter inclusiu, l'eficàcia i la pertinència dels sistemes d'educació i de formació per al mercat de treball, fins i tot a través del reconeixement de l'aprenentatge formal i informal, amb vista a donar suport a l'adquisició de competències clau, incloses les capacitats digitals i d'emprenedoria, i a través del foment de la introducció dels sistemes formació dual i d'aprenentatge"]
[]
[]
[null,"v) Promoure la igualtat d'accés a una educació i una formació de qualitat i inclusives i la seva culminació, en particular per als grups desfavorits, des de l'educació i l'atenció a la primera infància fins a l'educació i la formació generals i professionals, incloent l'educació superior, l'educació i l'aprenentatge dels adults i la facilitació de la mobilitat de l'aprenentatge per a tothom, i de l'accessibilitat per a les persones amb discapacitat"]
[]
[]
[null,"vi) Promoure l'aprenentatge permanent, especialment mitjançant oportunitats de millora i reciclatge flexibles de les capacitats per a tots tenint en compte les capacitats digitals i d'emprenedoria, una millor previsió dels canvis i nous requisits de capacitats, tenint en compte les necessitats del mercat de treball, facilitant les transicions professionals i promovent la mobilitat professional"]
[]
[]
[null,"vii) Fomentar la inclusió activa a l'objecte de promoure la igualtat d'oportunitats i la participació no discriminatòria i activa, i millorar l'ocupabilitat, en particular per als grups desfavorits"]
[]
[]
[null,"viii) Promoure la integració socioeconòmica dels nacionals de tercers països, incloses les persones migrants"]
[]
[]
[null,"viiia) Promoure la integració socioeconòmica de comunidades marginades, com la romaní"]
[]
[]
[null,"ix) Millorar la igualtat i l'oportunitat de l'accés a uns serveis de qualitat, sostenibles i assequibles, incloent serveis que promoguin l'accés a un habitatge i a cures centrades en la persona, inclosa l'assistència sanitària; modernitzar els sistemes de protecció social, i especialment promoure l'accés a la protecció social, amb especial focus en els nens i els grups desfavorits; millorar l'accessibilitat particularment de les persones amb discapacitat, l'efectivitat i la resiliència dels sistemes d'assistència sanitària i les cures de llarga durada"]
[]
[]
[null,"x) Promoure la integració social de les persones en risc de pobresa o exclusió social, incloses les persones més desfavorides i els nens"]
[]
[]
[null,"xi) Corregir la privació material mitjançant aliments o la prestació d'assistència material bàsica a les persones més desfavorides, inclosos els nens i facilitar mesures d'acompanyament per recolzar la seva inclusió social"]

{"sheet":"Hoja2","index":3,"n_rows":79,"n_cols":8,"rows_kept":79,"cut":false,"hidden":true,"merged":[]}
[false,{"$f":"'Taula OE'!B2","v":"i) Millorar l'accés a l'ocupació i a les mesures d'activació de tots els demandants d'ocupació, i en particular dels joves, espacialment a través de l'aplicació de la Garantia Juvenil, i els aturats de llarga durada, així com dels grups desfavorits en el mercat laboral, i de les persones inactives, promovent l'ocupació per compte propi i l'economia social"},"OBJECTIU ESPECÍFIC",null,{"$f":"IF(A1=TRUE,1,0)","v":0},null,null,false]
[false,{"$f":"'Taula OE'!B5","v":"ii) Modernitzar les institucions i els serveis del mercat de treball per avaluar i preveure les necessitats de capacitats i garantir una assistència oportuna i personalitzada i el suport a l'adequació entre l'oferta i la demanda en el mercat de treball, les transicions i la mobilitat"},"OBJECTIU ESPECÍFIC",null,{"$f":"IF(A2=TRUE,1,0)","v":0}]
[false,{"$f":"'Taula OE'!B8","v":"iii) Promoure una participació equilibrada pel que fa a gènere en el mercat de treball, condicions de treball equitatives i una millora de l'equilibri entre la vida laboral i la familiar, fins i tot a través de l'accés a serveis de cura infantil assequibles i serveis de cures per a persones dependents"},"OBJECTIU ESPECÍFIC",null,0]
[false,{"$f":"'Taula OE'!B11","v":"iii bis) Promoure l'adaptació dels treballadors, les empreses i els empresaris al canvi, l'envelliment actiu i saludable i a un entorn laboral saludable i ben adaptat que abordi els riscos per a la salut"},"OBJECTIU ESPECÍFIC",null,0]
[false,{"$f":"'Taula OE'!B14","v":"iv) Millorar la qualitat, el caràcter inclusiu, l'eficàcia i la pertinència dels sistemes d'educació i de formació per al mercat de treball, fins i tot a través del reconeixement de l'aprenentatge formal i informal, amb vista a donar suport a l'adquisició de competències clau, incloses les capacitats digitals i d'emprenedoria, i a través del foment de la introducció dels sistemes formació dual i d'aprenentatge"},"OBJECTIU ESPECÍFIC",null,0]
[false,{"$f":"'Taula OE'!B17","v":"v) Promoure la igualtat d'accés a una educació i una formació de qualitat i inclusives i la seva culminació, en particular per als grups desfavorits, des de l'educació i l'atenció a la primera infància fins a l'educació i la formació generals i professionals, incloent l'educació superior, l'educació i l'aprenentatge dels adults i la facilitació de la mobilitat de l'aprenentatge per a tothom, i de l'accessibilitat per a les persones amb discapacitat"},"OBJECTIU ESPECÍFIC",null,0]
[false,{"$f":"'Taula OE'!B20","v":"vi) Promoure l'aprenentatge permanent, especialment mitjançant oportunitats de millora i reciclatge flexibles de les capacitats per a tots tenint en compte les capacitats digitals i d'emprenedoria, una millor previsió dels canvis i nous requisits de capacitats, tenint en compte les necessitats del mercat de treball, facilitant les transicions professionals i promovent la mobilitat professional"},"OBJECTIU ESPECÍFIC",null,0]
[false,{"$f":"'Taula OE'!B23","v":"vii) Fomentar la inclusió activa a l'objecte de promoure la igualtat d'oportunitats i la participació no discriminatòria i activa, i millorar l'ocupabilitat, en particular per als grups desfavorits"},"OBJECTIU ESPECÍFIC",null,0]
[false,{"$f":"'Taula OE'!B26","v":"viii) Promoure la integració socioeconòmica dels nacionals de tercers països, incloses les persones migrants"},"OBJECTIU ESPECÍFIC",null,0]
[false,{"$f":"'Taula OE'!B29","v":"viiia) Promoure la integració socioeconòmica de comunidades marginades, com la romaní"},"OBJECTIU ESPECÍFIC",null,0]
[false,{"$f":"'Taula OE'!B32","v":"ix) Millorar la igualtat i l'oportunitat de l'accés a uns serveis de qualitat, sostenibles i assequibles, incloent serveis que promoguin l'accés a un habitatge i a cures centrades en la persona, inclosa l'assistència sanitària; modernitzar els sistemes de protecció social, i especialment promoure l'accés a la protecció social, amb especial focus en els nens i els grups desfavorits; millorar l'accessibilitat particularment de les persones amb discapacitat, l'efectivitat i la resiliència dels sistemes d'assistència sanitària i les cures de llarga durada"},"OBJECTIU ESPECÍFIC",null,0]
[false,{"$f":"'Taula OE'!B35","v":"x) Promoure la integració social de les persones en risc de pobresa o exclusió social, incloses les persones més desfavorides i els nens"},"OBJECTIU ESPECÍFIC",null,0]
[false,{"$f":"'Taula OE'!B38","v":"xi) Corregir la privació material mitjançant aliments o la prestació d'assistència material bàsica a les persones més desfavorides, inclosos els nens i facilitar mesures d'acompanyament per recolzar la seva inclusió social"},"OBJECTIU ESPECÍFIC",null,0]
[]
[]
[]
[]
[]
[]
[]
[]
[]
[]
[]
[]
[]
[]
[]
[]
[]
[]
[]
[]
[]
[]
[]
[]
[]
[]
[]
[]
[null,null,null,null,{"$f":"SUM(E1:E41)","v":0}]
[]
[null,8]
[]
["Contractació"]
["Contracte-programa"]
["Concurrència no competitiva"]
["Subvenció per concurrència"]
["Gestió directa"]
["Concert"]
["Conveni"]
[]
[1]
[]
["Visites presencials",false]
["Registres d'usuaris atesos",false]
["Proves documentals dels usuaris atesos",false]
["Proves documentals dels serveis prestats",false]
[]
["Visites presencials",false]
["Registres d'usuaris atesos",false]
["Proves documentals dels usuaris atesos:",false]
["Proves documentals del servei prestat:",false]
[]
["Públic"]
["Privat"]
["Públic i privat"]
[]
["Fons Europeu de Desenvolupament Regional (FEDER)"]
["Fons Europeu Agrícola de Desenvolupament Rural (FEADER)"]
["Fons Europeu Marítim i de Pesca (FEMP)"]
["Fons de Cohesió"]
["No"]
[]
["Cost Real"]
["Costos Simplificats: Taxes Fixes"]
["Costos Simplificats: Costos Unitaris"]
["Sistemes Mixtos"]

{"sheet":"Sistemes de gestió","index":4,"n_rows":132,"n_cols":9,"rows_kept":132,"cut":false,"hidden":false,"merged":[[49,0,49,6],[52,0,52,6],[55,0,55,6],[31,0,31,6],[33,0,33,6],[35,0,35,6],[44,0,45,6],[43,0,43,6],[41,0,41,6],[46,0,46,6],[0,0,0,6],[8,0,8,6],[12,0,12,6],[4,0,4,6],[39,0,39,6],[8,8,8,16],[12,8,12,16],[16,8,16,16],[29,0,29,6],[27,0,27,6],[16,0,16,6],[18,0,18,6],[20,0,20,6],[23,0,23,6],[132,0,132,6],[65,0,65,6],[68,0,68,6],[129,0,129,6],[125,0,125,6],[77,0,77,6],[95,0,95,6],[98,0,98,6],[88,0,91,6],[101,0,101,6],[118,0,118,6],[122,0,122,6],[61,0,61,6],[85,0,85,6],[83,0,83,6],[114,1,114,6],[58,0,58,6],[81,0,81,6],[113,1,113,6],[107,1,107,6],[73,5,73,6]]}
["DESCRIPCIÓ DELS SISTEMES DE GESTIÓ"]
["REQUISITS GENERALS:"]
["1. Hi ha alguna de les accions que es pot executar fora de l'àmbit territorial de Catalunya"]
[]
[]
[]
["2. Possibilitat de disposar d'un sistema de comptabilitat separada o codi identificatiu"]
[]
[null,null,null,null,null,null,null,null,"Segons l'art. 125 punt 4b) del Reglament (UE) 1303/2013, cal garantitzar que els beneficiaris han de disposar de comptabilitat separada o un codi comptable adequat, per la qual cosa, s'han d'identificar els assentaments comptables amb un codi comptable específic.\nEn el cas, que s'utilitzi sistemes de justificació mitjançant mòduls econòmics com a sistema de justificació l'obligació de disposar comptabilitat separada serà les que estableixi la normativa pròpia de subvencions, però no és un element indispensable de disposar, ja que no es justifica per despeses reals sinó per l'acompliment d'execució i objectius."]
[]
["3. Disposa d'algun sistema per evitar el doble finançament"]
[]
[null,null,null,null,null,null,null,null,"Segons el principi de prohibició de doble finançament (no es pot finançar els mateixos costos dues vegades en cap pressupost), definir quins sistemes s'utilitzen per controlar aquest aspecte, per exemple, declaració del finançament a les sol·licituds, control de possibles altres fons de finançament, control comptable als beneficiaris finals... \nEn el cas que per la naturalesa de l'actuació no és possible que hi hagi doble finançament realitzeu una explicació del motiu pel qual no es pot produir."]
[]
["4. Disposa d'un procediment per evitar el frau"]
[]
[null,null,null,null,null,null,null,null,"Els sistemes per evitar el frau poden ser el disposar d'items específics en els controls realitzats específics de frau (detecció documents falsos, desviament fons a finalitats diferents al qual es va dirigir…), procediments etablerts per a denunciar possibles casos de frau..."]
[]
["5. Es disposa de procediments o d'un sistema d'arxiu que permeti la conservació de la documentació justificativa de les despeses en el termini establert reglamentariament, o per verificar que les entitats beneficiàries en disposen"]
[]
[]
[]
["6. Quines són les possibles mesures d'informació i publicitat previstes"]
[]
[]
["7. Existeix la possibilitat de subcontractar l'execució de l'actuació"]
[]
[]
[]
["8. Hi ha algun aspecte que condicioni la subvencionalitat de la despesa (ex. acompliment objectius, realització d'una actuació obligatòria, etc.)"]
[]
[]
[]
["9. En cas d'existir un procés de selecció de personal vinculat al desenvolupament de l'operació (persones contractades especialment), s'estableix algun sistema específic de selecció"]
[]
[]
[]
["FASE D'ATORGAMENT:"]
["10. Publicació convocatòria o de l'ajut"]
[]
[]
["11. Indiqueu si el repartiment de la partida pressupostària es realitza tenint en compte la valoració dels millors projectes i no d'una manera línial"]
[]
[]
["12. Criteris per avaluar la capacitat de les entitas receptores dels ajuts (ex. situació financera, experiència plantilla, etc.)"]
[]
[]
[]
["13. Criteris de valoració"]
[]
[]
["14. Com es registren les valoracions de les sol·licituds (informes, actes de òrgans col·legiats...)"]
[]
[]
["15. Es fa alguna comprovació de requisits o son declaracions responsables"]
[]
[]
["16. Indiqueu com es publiquen els atorgaments i si hi ha proposta de resolució"]
[]
[]
["17. Les resolucions dels atorgaments són individualitzades o és una resolució conjunta d'atorgaments"]
[]
[]
["FASE D'ADJUDICACIÓ:"]
["18. Sistema utilitzat (menor/negociat/obert/urgència/altres)"]
[]
[]
["19. Criteris de valoració"]
[]
[]
["FASE D'EXECUCIÓ:"]
["20. Es realitzen visites sobre el terreny (verificacions in situ)"]
[]
["21. En cas afirmatiu, indicar el percentatge de verificacions in situ realitzades"]
[]
["22. En cas de verificació in situ detallar el sistema de mostreig utilitzat"]
[]
[]
[]
["23. Disposa de manuals, guies i/o instruccions internes per la gestió de l'operació"]
[]
[]
[]
["24. Disposa de manuals, guies i/o instruccions per a les entitats receptores de l'ajut per la gestió de l'operació"]
[]
[]
[]
["25. Tipus de documentació que es comprova en relació a l'acreditació de l'execució"]
[]
[]
[]
[]
[]
["26. Es revisa tota la documentació administrativa",null,null,null,{"$f":"IF(Full1!B18=3,\"Percentatge verificat:\",\"\")","v":""}]
[]
[]
[]
["27. Com es deixa constància de la revisió"]
[]
[]
["FASE DE JUSTIFICACIÓ:"]
["28. De les actuacions que incorporen algun sistema de simplificació: es disposa de document acreditatiu/informe tècnic motivat que fonamenta el sistema de simplificació?"]
[]
["29.De les actuacions que no es justifiquen mitjançant la modalitat d'Acreditació per Mòduls:"]
[]
[null,"29.1. De quina documentació acreditativa de la justificació econòmica es disposa?"]
[]
[]
[]
[null,"29.2. Es disposa dels originals?"]
[]
[null,"29.3. Es podria facilitar la documentació en format PDF?"]
[]
["          ","29.4. La documentació acreditativa de la justificació econòmica està a la seu del beneficiari o es custodia a les entitats receptores de l'ajut?"]
[]
[]
["30. Existeixen manuals/guies/instruccions externes per les entitats en la fase de justificació?"]
[]
[]
[]
["31. Existeixen instruccions o plans de control interns del beneficiari en la fase de justificació?"]
[]
[]
[]
["32. Si no es revisa tota la documentació administrativa quin sistema de mostreig s'utilitza"]
[]
[]
["33. En cas d'estar subjecte a mínimis, es comprova que no es supera el límit dels mínimis"]
[]
[]
[]
["34. En cas de subcontractacions, quines comprovacions es realitzen"]

{"sheet":"Descripció aplicacions","index":5,"n_rows":152,"n_cols":3,"rows_kept":152,"cut":false,"hidden":false,"merged":[[149,5,149,12],[151,5,151,12],[130,0,130,12],[131,0,145,12],[48,0,48,12],[0,0,0,12],[8,0,22,12],[7,0,7,12],[24,0,24,12],[123,0,123,12],[31,0,31,12],[32,0,46,12],[58,0,58,12],[65,0,65,12],[69,0,83,12],[67,1,67,12]]}
["Concessió de l'ajut"]
[]
["Nom de l'aplicació:",null,{"$f":"IF(Fitxa!D48=\"\",\"\",Fitxa!D48)","v":""}]
[]
["Tipus d'aplicació:"]
[]
["Descripció principals funcionalitats"]
["S'ha de tenir en compte els requeriments detallats per l'obtenció de l'ajut, terminis, declaracions, etc."]
[]
[]
[]
[]
[]
[]
[]
[]
[]
[]
[]
[]
[]
[]
[]
[]
["Seguiment de l'execució"]
[]
["Nom de l'aplicació:",null,{"$f":"IF(Fitxa!D50=\"\",\"\",Fitxa!D50)","v":""}]
[]
["Tipus d'aplicació:"]
[]
["Descripció principals funcionalitats"]
["Han de quedar documentats i acreditats els elements clau de l'operació. Per exemple: nombre de participants, requeriments, el nombre d’hores acreditades de l’activitat, docents (per exemple) amb codificació que permeti la pista d’auditoria. En formació l’acreditació d’hores de formació impartides ha de constar necessàriament amb identificació simplificada (amb codi) de l’activitat"]
[]
[]
[]
[]
[]
[]
[]
[]
[]
[]
[]
[]
[]
[]
[]
[]
["En cas de gestió directa o despesa de personal, l'aplicació genera un document on es pugui traçar les tasques realitzades pels treballadors/temps de dedicació"]
[]
["Quan hi ha despesa de personal acreditada per hores, l'aplicació genera un document on es pugui traçar les hores treballades per:"]
[]
[null,"Temporalitzacions"]
[]
[null,"Tasques realitzades"]
[]
["L'aplicació té mecanismes de control sobre el compliment dels requisits mínims establerts en l'operació"]
[]
["Justificació econòmica"]
[]
["Nom de l'aplicació:",null,{"$f":"IF(Fitxa!D52=\"\",\"\",Fitxa!D52)","v":""}]
[]
["Tipus d'aplicació:"]
[]
["Descripció principals funcionalitats"]
["Han de quedar acreditats els terminis i els tipus de justificació: "]
[null,"Si es tracta d’una justificació amb despesa real, l’òptim hauria de permetre identificar les despeses elegibles"]
[null,"Si es tracta d’una justificació mitjançant mòdul, està estretament lligat a l’execució, i les dades que acreditin la variable per obtenir l’import subvencionat"]
["En tot cas, han de quedar documentades i acreditades les comprovacions efectuades en base als requeriments establerts a l'operació"]
[]
[]
[]
[]
[]
[]
[]
[]
[]
[]
[]
[]
[]
[]
[]
[]
["Es preveu que  la justificació econòmica inclogui cost directe de personal acreditat a cost real per cost/hora?"]
[]
["En cas afirmatiu, en l'aplicació queden traçats els següents conceptes del cost brut del treballador:"]
[]
[null,"Salari base"]
[]
[null,"Pagues extraordinàries"]
[]
[null,"Complements"]
[]
[null,"Triennis"]
[]
[null,"Base contingències comunes"]
[]
[null,"Quota contingències comunes"]
[]
[null,"Quota A.T"]
[]
[null,"Quota Atur"]
[]
[null,"Quota Formació Professional"]
[]
[null,"Quota FOGASA"]
[]
[null,"Cost total Seguretat Social"]
[]
[null,"Cost total treballador"]
[]
[null,"Dies IT"]
[]
[null,"Import IT"]
[]
["L'aplicació genera un document on es pugui traçar les hores treballades per:"]
[]
[null,"Temporalitzacions"]
[]
[null,"Tasques realitzades"]
[]
["Pagament"]
[]
["Nom de l'aplicació:",null,{"$f":"IF(Fitxa!D54=\"\",\"\",Fitxa!D54)","v":""}]
[]
["Tipus d'aplicació:"]
[]
["Descripció principals funcionalitats"]
["Han de quedar acreditades i documentades les ordres de pagament i els pagaments amb les dates corresponents"]
[]
[]
[]
[]
[]
[]
[]
[]
[]
[]
[]
[]
[]
[]
[]
[]
["Hi ha constància del pagament efectuat i de la data?"]
[]
["Quin òrgan u organisme fa el pagament efectiu?"]
[]
["Amb quina periodicitat e fa el pagament?"]

{"sheet":"Full1","index":6,"n_rows":170,"n_cols":8,"rows_kept":170,"cut":false,"hidden":true,"merged":[]}
[]
["Sí"]
["No",null,null,"Possibilitat de disposar d'un sistema de comptabilitat separada o codi identificatiu"]
[]
["Sí"]
["No",null,null,"Disposa d'algun sistema per evitar el doble finançament"]
[]
["Sí"]
["No",null,null,"Ajut d'Estat"]
[]
["Sí"]
["No",null,null,"Disposa de manuals/guies/instruccions"]
[]
["Sí"]
["No",1,null,"Es realitzen verificacions in situ"]
[]
["Sí"]
["No",null,null,"Es revisa tota la documentació administrativa"]
[]
["Sí"]
["No",1,null,"Es preveu que una part de la justificació econòmica es faci a cost real i inclogui cost directe de personal?"]
[]
["Sí"]
["No",null,null,"Hi ha alguna de les accions que es pot executar fora de l'ambit territorial de Catalunya"]
[]
["Sí"]
["No",null,null,"Hi ha algun aspecte que condicioni la subvencionalitat de la despesa declarada (ex. acompliment objectius, realització d'una actuació obligatòria, etc.)"]
[]
["Sí"]
["No",null,null,"En cas d'existir un procés de selecció de participants (persones contractades especialment) s'estableix algun sistema específic del sistema de selecció dels participants"]
[]
["Sí"]
["No"]
[]
["Sí"]
["No",null,null,"Disposa de manuals/guies/instruccions per a les entitats receptores de l'ajut per la gestió de l'operació"]
[]
["Sí"]
["No",null,null,"Disposeu de tota la documentació de justificació econòmica de les despeses declarades pel beneficiari"]
[]
["Sí"]
["No",null,null,"En cas d'estar subjecte a mínimis , es comprova que no es supera el límit dels mínimis"]
[]
["Sí"]
["No",null,null,"Disposa d'un procediemnt per evitar el frau"]
[]
["Sí"]
["No",null,null,"Es disposa de procediments d'un sistema d'arxiu que permeti la conservació de la documentació justificativa de les despeses en el termini establert en el Conveni o per verificar que les entitats beneficiàries en disposen"]
[]
["Sí"]
["No",null,null,"Existeixen instruccions o guies per les entitats de la fase de justificació"]
[]
["Sí"]
["No",null,null,"Existeixen instruccions o plans de control internes del beneficiari de la fase de justifiació "]
[]
["Sí"]
["No",1]
[]
["Sí"]
["No",null,null,"Es disposa de tota la documentació acreditativa de la justifiació econòmica"]
[]
["Sí"]
["No"]
[]
["Sí"]
["No",null,null,"Existeix la possibilitat de subcontractar l'execució de l'actuació"]
[]
["Sí"]
["No",null,null,"En l'operació es pot obtenir l'indicador \"Nombre d'administracions públiques o serveis públics objecte de suport a nivell nacional, regional o local\""]
[]
["Sí"]
["No",null,null,"En l'operació es pot obtenir l'indicador \"Nombre de microempreses i petites i mitjanes empreses objecte de suport (incloses cooperatives i empreses socials)\""]
[]
[]
["Sí"]
["No",null,null,"Es disposa dels originals?"]
[]
[]
["Sí"]
["No",null,null,"Es podria facilitar la documentació en format PDF?"]
[]
[null,null,null,null,"Concessió de l'ajut","Seguiment de l'execució","Justificació Econòmica","Pagament"]
[null,null,null,"Corporativa"]
[null,null,null,"Feta a mida"]
[null,null,null,"Ofimàtica"]
[null,null,null,null,1]
[]
[]
["Sí"]
["No",null,null,"L'aplicació genera un document on es pugui traçar les tasques realitzades pels treballades/temps de dedicació"]
[]
["Sí"]
["No",null,null,"Temporalitzacions"]
[]
[]
[]
[]
["Sí"]
["No",null,null,"Tasques realitzades"]
[]
["Sí"]
["No",null,null,"L'aplicació té uns sistemes de comptabiliatzació dels requisits mínims a executar segons programa o convocatòria"]
[]
["Sí"]
["No"]
["NA",null,null,"Salari base"]
[]
["Sí"]
["No"]
["NA",null,null,"Pagues extraordinàries"]
[]
["Sí"]
["No"]
["NA",null,null,"Complements"]
[]
["Sí"]
["No"]
["NA",null,null,"Triennis"]
[]
["Sí"]
["No"]
["NA",null,null,"Base contingències comuns"]
[]
["Sí"]
["No"]
["NA",null,null,"Quota contingències comuns"]
[]
["Sí"]
["No"]
["NA",null,null,"Quota A.T"]
[]
["Sí"]
["No"]
["NA",null,null,"Quota Atur"]
[]
["Sí"]
["No"]
["NA",null,null,"Quota Formació Professional"]
[]
["Sí"]
["No"]
["NA",null,null,"Quota FOGASA"]
[]
["Sí"]
["No"]
["NA",null,null,"Cost total Seguretat Social"]
[]
["Sí"]
["No"]
["NA",null,null,"Cost total treballador"]
[]
["Sí"]
["No"]
["NA",null,null,"Dies IT"]
[]
["Sí"]
["No"]
["NA",null,null,"Import IT"]
[]
["Sí"]
["No",null,null,"Temporalitzacions"]
[]
["Sí"]
["No",1,null,"Hi ha constància del pagament efectuat i de la data?"]
[]
["Sí"]
["No",null,null,"Tasques realitzades"]
[]
["Sí"]
["No",1,null,"De les actuacions que incorporen algun sistema de simplificació: es disposa de document acreditatiu/informe tècnic motivat que fonamenta el sistema de simplificació?"]